Workbook

Sheet Page 14
A1: COMPUTING THE PRESENT VALUE
A2: Discount rate | B2: 0.1
A4: Year | B4: Cash flow | C4: Present value
A5: 1 | B5: 100 | C5: =B5/(1+$B$2)^A5 -> 90.90909091 | D5: =getformula(C5) -> <-- =B5/(1+$B$2)^A5
A6: 2 | B6: 100 | C6: =B6/(1+$B$2)^A6 -> 82.6446281 | D6: =getformula(C6) -> <-- =B6/(1+$B$2)^A6
A7: 3 | B7: 100 | C7: =B7/(1+$B$2)^A7 -> 75.13148009 | D7: =getformula(C7) -> <-- =B7/(1+$B$2)^A7
A8: 4 | B8: 100 | C8: =B8/(1+$B$2)^A8 -> 68.30134554 | D8: =getformula(C8) -> <-- =B8/(1+$B$2)^A8
A9: 5 | B9: 100 | C9: =B9/(1+$B$2)^A9 -> 62.09213231 | D9: =getformula(C9) -> <-- =B9/(1+$B$2)^A9
A11: Net present value
A12: =" Summing cells "&CHAR(COLUMN(C5)+64)&ROW(C5)&":"&CHAR(COLUMN(C9)+64)&ROW(C9) -> Summing cells C5:C9 | B12: =SUM(C5:C9) -> 379.0786769 | C12: =getformula(B12) -> <-- =SUM(C5:C9)
A13: Using Excel's NPV function | B13: =NPV(B2,B5:B9) -> 379.0786769 | C13: =getformula(B13) -> <-- =NPV(B2,B5:B9)
A14: Using Excel's PV function | B14: =PV(B2,5,-100) -> 379.0786769 | C14: =getformula(B14) -> <-- =PV(B2,5,-100)

Sheet Page 15
A1: COMPUTING THE PRESENT VALUE In this example the cash flows are not equal Either discount each cash flow separately or use Excel's NPV function Excel's PV doesn't work for this case
A2: Discount rate | B2: 0.1
A4: Year | B4: Cash flow | C4: Present value | D4: Present value of each cash flow
A5: 1 | B5: 100 | C5: =B5/(1+$B$2)^A5 -> 90.90909091 | D5: =getformula(C5) -> <-- =B5/(1+$B$2)^A5
A6: 2 | B6: 200 | C6: =B6/(1+$B$2)^A6 -> 165.2892562 | D6: =getformula(C6) -> <-- =B6/(1+$B$2)^A6
A7: 3 | B7: 300 | C7: =B7/(1+$B$2)^A7 -> 225.3944403 | D7: =getformula(C7) -> <-- =B7/(1+$B$2)^A7
A8: 4 | B8: 400 | C8: =B8/(1+$B$2)^A8 -> 273.2053821 | D8: =getformula(C8) -> <-- =B8/(1+$B$2)^A8
A9: 5 | B9: 500 | C9: =B9/(1+$B$2)^A9 -> 310.4606615 | D9: =getformula(C9) -> <-- =B9/(1+$B$2)^A9
A11: Net present value
A12: =" Summing cells "&CHAR(COLUMN(C5)+64)&ROW(C5)&":"&CHAR(COLUMN(C9)+64)&ROW(C9) -> Summing cells C5:C9 | B12: =SUM(C5:C9) -> 1065.258831 | C12: =getformula(B12) -> <-- =SUM(C5:C9)
A13: Using Excel's NPV function | B13: =NPV(B2,B5:B9) -> 1065.258831 | C13: =getformula(B13) -> <-- =NPV(B2,B5:B9)

Sheet Page 16
A1: COMPUTING THE NET PRESENT VALUE
A2: Discount rate | B2: 0.1
A4: Year | B4: Cash flow | C4: Present value
A5: 0 | B5: -250 | C5: =B5/(1+$B$2)^A5 -> -250 | D5: =getformula(C5) -> <-- =B5/(1+$B$2)^A5
A6: 1 | B6: 100 | C6: 90.90909091 | D6: <-- =B6/(1+$B$2)^A6
A7: 2 | B7: 100 | C7: 82.6446281 | D7: <-- =B7/(1+$B$2)^A7
A8: 3 | B8: 100 | C8: 75.13148009 | D8: <-- =B8/(1+$B$2)^A8
A9: 4 | B9: 100 | C9: 68.30134554 | D9: <-- =B9/(1+$B$2)^A9
A10: 5 | B10: 100 | C10: 62.09213231 | D10: <-- =B10/(1+$B$2)^A10
A12: Net present value
A13: =" Summing cells "&CHAR(COLUMN(C5)+64)&ROW(C5)&":"&CHAR(COLUMN(C10)+64)&ROW(C10) -> Summing cells C5:C10 | B13: =SUM(C5:C10) -> 129.0786769 | C13: =getformula(B13) -> <-- =SUM(C5:C10)
A14: Using Excel's NPV function | B14: =B5+NPV(B2,B6:B10) -> 129.0786769 | C14: =getformula(B14) -> <-- =B5+NPV(B2,B6:B10)

Sheet Page 18, top
A1: COMPUTING THE VALUE OF A FINITE ANNUITY
A2: Periodic payment, C | B2: 1000
A3: Number of future periods paid, n | B3: 5
A4: Discount rate, r | B4: 0.12
A5: Present value of annuity
A6: Using formula | B6: =B2*(1-1/(1+B4)^B3)/B4 -> 3604.776202 | C6: =getformula(B6) -> <-- =B2*(1-1/(1+B4)^B3)/B4
A7: Using Excel's PV function | B7: =PV(B4,B3,-B2) -> 3604.776202 | C7: =getformula(B7) -> <-- =PV(B4,B3,-B2)
A9: Period | B9: Annuity payment
A10: 1 | B10: =B2 -> 1000 | C10: =getformula(B10) -> <-- =B2
A11: 2 | B11: =B10 -> 1000
A12: 3 | B12: =B11 -> 1000
A13: 4 | B13: =B12 -> 1000
A14: 5 | B14: =B13 -> 1000
A16: Present value using Excel's NPV function | B16: =NPV(B4,B10:B14) -> 3604.776202 | C16: =getformula(B16) -> <-- =NPV(B4,B10:B14)

Sheet Page 18, middle
A1: COMPUTING THE VALUE OF AN INFINITE ANNUITY
A2: Periodic payment, C | B2: 1000
A3: Discount rate, r | B3: 0.12
A4: Present value of annuity | B4: =B2/B3 -> 8333.333333 | C4: =getformula(B4) -> <-- =B2/B3

Sheet Page 19, middle
A1: COMPUTING THE VALUE OF A FINITE GROWING ANNUITY
A2: First payment, C | B2: 1000
A3: Growth rate of payments, g | B3: 0.06
A4: Number of future periods paid, n | B4: 5
A5: Discount rate, r | B5: 0.12
A6: Present value of annuity
A7: Using formula | B7: =B2*(1-((1+B3)/(1+B5))^B4)/(B5-B3) -> 4010.914471 | C7: =getformula(B7) -> <-- =B2*(1-((1+B3)/(1+B5))^B4)/(B5-B3)
A9: Period | B9: Annuity payment
A10: 1 | B10: =B2 -> 1000 | C10: =getformula(B10) -> <-- =B2
A11: 2 | B11: =$B$2*(1+$B$3)^(A11-1) -> 1060 | C11: =getformula(B11) -> <-- =$B$2*(1+$B$3)^(A11-1)
A12: 3 | B12: =$B$2*(1+$B$3)^(A12-1) -> 1123.6 | C12: =getformula(B12) -> <-- =$B$2*(1+$B$3)^(A12-1)
A13: 4 | B13: =$B$2*(1+$B$3)^(A13-1) -> 1191.016 | C13: =getformula(B13) -> <-- =$B$2*(1+$B$3)^(A13-1)
A14: 5 | B14: =$B$2*(1+$B$3)^(A14-1) -> 1262.47696 | C14: =getformula(B14) -> <-- =$B$2*(1+$B$3)^(A14-1)
A16: Present value using Excel's NPV function | B16: =NPV(B5,B10:B14) -> 4010.914471 | C16: =getformula(B16) -> <-- =NPV(B5,B10:B14)

Sheet Page 19, bottom
A1: COMPUTING THE VALUE OF AN INFINITE GROWING ANNUITY
A2: Periodic payment, C | B2: 1000 | C2: <-- Starting at date 1
A3: Growth rate of payments, g | B3: 0.06
A4: Discount rate, r | B4: 0.12
A5: Present value of annuity | B5: =B2/(B4-B3) -> 16666.66667 | C5: =getformula(B5) -> <-- =B2/(B4-B3)

Sheet Page 21, top
A1: INTERNAL RATE OF RETURN
A2: Year | B2: Cash flow
A3: 0 | B3: -800
A4: 1 | B4: 200
A5: 2 | B5: 250
A6: 3 | B6: 300
A7: 4 | B7: 350
A8: 5 | B8: 400
A10: Internal rate of return | B10: =IRR(B3:B8) -> 0.221603098 | C10: =getformula(B10) -> <-- =IRR(B3:B8)

Sheet Page 21, bottom
A1: INTERNAL RATE OF RETURN
A2: Discount rate | B2: 0.12
A4: Year | B4: Cash flow
A5: 0 | B5: -800
A6: 1 | B6: 200
A7: 2 | B7: 250
A8: 3 | B8: 300
A9: 4 | B9: 350
A10: 5 | B10: 400
A12: Net present value (NPV) | B12: =B5+NPV(B2,B6:B10) -> 240.806042 | C12: =getformula(B12) -> <-- =B5+NPV(B2,B6:B10)

Sheet Page22
A1: INTERNAL RATE OF RETURN
A2: Discount rate | B2: 0.2216030979
A4: Year | B4: Cash flow
A5: 0 | B5: -800
A6: 1 | B6: 200
A7: 2 | B7: 250
A8: 3 | B8: 300
A9: 4 | B9: 350
A10: 5 | B10: 400
A12: Net present value (NPV) | B12: =B5+NPV(B2,B6:B10) -> 4.823584732e-08 | C12: =getformula(B12) -> <-- =B5+NPV(B2,B6:B10)

Sheet Page23
A1: INTERNAL RATE OF RETURN
A2: Year | B2: Cash flow
A3: 0 | B3: -800
A4: 1 | B4: 200
A5: 2 | B5: 250
A6: 3 | B6: 300
A7: 4 | B7: 350
A8: 5 | B8: 400
A10: Internal rate of return | B10: =IRR(B3:B8) -> 0.221603098 | C10: =getformula(B10) -> <-- =IRR(B3:B8)
A12: USING THE IRR IN A LOAN TABLE
D13: Division of cash flow between investment income and return of principal
A14: Year | B14: Investment at beginning of year | C14: Cash flow at end of year | D14: Income | E14: Return of principal
A15: 1 | B15: =-B3 -> 800 | C15: =B4 -> 200 | D15: =$B$10*B15 -> 177.2824784 | E15: =C15-D15 -> 22.71752164 | F15: =getformula(E15) -> <-- =C15-D15
A16: 2 | B16: =B15-E15 -> 777.2824784 | C16: =B5 -> 250 | D16: =$B$10*B16 -> 172.2482052 | E16: =C16-D16 -> 77.75179481
A17: 3 | B17: =B16-E16 -> 699.5306836 | C17: =B6 -> 300 | D17: =$B$10*B17 -> 155.0181666 | E17: =C17-D17 -> 144.9818334
A18: 4 | B18: =B17-E17 -> 554.5488501 | C18: =B7 -> 350 | D18: =$B$10*B18 -> 122.8897432 | E18: =C18-D18 -> 227.1102568
A19: 5 | B19: =B18-E18 -> 327.4385933 | C19: =B8 -> 400 | D19: =$B$10*B19 -> 72.56140667 | E19: =C19-D19 -> 327.4385933
A20: 6 | B20: =B19-E19 -> -2.688983614e-08

Sheet Pages24-26
A1: USING A LOAN TABLE TO FIND THE IRR
A2: IRR? | B2: 0.15
D4: Division of cash flow between investment income and return of principal
A5: Year | B5: Principal at beginning of year | C5: Cash flow at end of year | D5: Income | E5: Principal
A6: 1 | B6: 1000 | C6: 300 | D6: =$B$2*B6 -> 150 | E6: =C6-D6 -> 150 | F6: =getformula(E6) -> <-- =C6-D6
A7: 2 | B7: =B6-E6 -> 850 | C7: 200 | D7: =$B$2*B7 -> 127.5 | E7: =C7-D7 -> 72.5
A8: 3 | B8: =B7-E7 -> 777.5 | C8: 150 | D8: =$B$2*B8 -> 116.625 | E8: =C8-D8 -> 33.375
A9: 4 | B9: =B8-E8 -> 744.125 | C9: 600 | D9: =$B$2*B9 -> 111.61875 | E9: =C9-D9 -> 488.38125
A10: 5 | B10: =B9-E9 -> 255.74375 | C10: 900 | D10: =$B$2*B10 -> 38.3615625 | E10: =C10-D10 -> 861.6384375
A11: 6 | B11: =B10-E10 -> -605.8946875
A15: Direct calculation of IRR
A16: Year | B16: Cash flow
A17: 0 | B17: -1000
A18: 1 | B18: =C6 -> 300
A19: 2 | B19: =C7 -> 200
A20: 3 | B20: =C8 -> 150
A21: 4 | B21: =C9 -> 600
A22: 5 | B22: =C10 -> 900
A24: IRR | B24: =IRR(B17:B22) -> 0.2443607426 | C24: =getformula(B24) -> <-- =IRR(B17:B22)

Sheet Page 26, bottom
A1: USING EXCEL'S RATE FUNCTION TO COMPUTE THE IRR
A2: Initial investment | B2: 1000
A3: Periodic cash flow | B3: 100
A4: Number of payments | B4: 30
A5: IRR | B5: =RATE(B4,B3,-B2) -> 0.09307339772 | C5: =getformula(B5) -> <-- =RATE(B4,B3,-B2)

Sheet Pages 27-28
A1: MULTIPLE INTERNAL RATES OF RETURN
A2: Discount rate | B2: 0.06
A3: NPV | B3: =NPV(B2,B7:B11)+B6 -> -3.985436268 | C3: =getformula(B3) -> <-- =NPV(B2,B7:B11)+B6 | G3: DATA TABLE
G4: Discount rate | H4: NPV
A5: Year | B5: Cash flow | H5: =B3 -> -3.985436268 | I5: ="Table header, "&getformula(H5) -> Table header, <-- =B3
A6: 0 | B6: -145 | G6: 0 | H6: -20
A7: 1 | B7: 100 | G7: 0.03 | H7: -10.50757542
A8: 2 | B8: 100 | G8: 0.06 | H8: -3.985436268
A9: 3 | B9: 100 | G9: 0.09 | H9: 0.2408564733
A10: 4 | B10: 100 | G10: 0.12 | H10: 2.69254934
A11: 5 | B11: -275 | G11: 0.15 | H11: 3.774234064
G12: 0.18 | H12: 3.801146008
G13: 0.21 | H13: 3.019700069
G14: 0.24 | H14: 1.623039049
G15: 0.27 | H15: -0.2371229015
G16: 0.3 | H16: -2.44142766
G17: 0.33 | H17: -4.895886048
G18: 0.36 | H18: -7.526469985
G19: 0.39 | H19: -10.27490734
G21: Note: For a discussion of how to create data tables in Excel, see Chapter 31.
A29: Identifying the two IRRs
A30: First IRR | B30: =IRR(B6:B11,0) -> 0.08782827385 | C30: =getformula(B30) -> <-- =IRR(B6:B11,0)
A31: Second IRR | B31: =IRR(B6:B11,0.3) -> 0.2664950072 | C31: =getformula(B31) -> <-- =IRR(B6:B11,0.3)

Sheet Page 28, bottom
A1: BOND CASH FLOWS: NPV CROSSES X-AXIS ONLY ONCE, SO THERE IS ONLY ONE IRR
A2: Year | B2: Cash flow | E2: Data table: Effect of
A3: 0 | B3: -800 | E3: discount rate on NPV
A4: 1 | B4: 100 | F4: =NPV(E4,B4:B11)+B3 -> 1000 | G4: =getformula(F4)&", table header" -> <-- =NPV(E4,B4:B11)+B3, table header
A5: 2 | B5: 100 | E5: 0 | F5: 1000
A6: 3 | B6: 100 | E6: 0.02 | F6: 786.0385152
A7: 4 | B7: 100 | E7: 0.04 | F7: 603.9646925
A8: 5 | B8: 100 | E8: 0.06 | F8: 448.3917524
A9: 6 | B9: 100 | E9: 0.08 | F9: 314.9327789
A10: 7 | B10: 100 | E10: 0.1 | F10: 200
A11: 8 | B11: 1100 | E11: 0.12 | F11: 100.6472047
E12: 0.14 | F12: 14.44544424
A13: IRR | B13: =IRR(B3:B11) -> 0.1436420844 | C13: =getformula(B13) -> <-- =IRR(B3:B11) | E13: 0.16 | F13: -60.6154537
E14: 0.18 | F14: -126.2052606
E15: 0.2 | F15: -183.7159803

Sheet Page 29
A1: FLAT PAYMENT SCHEDULES
A2: Loan principal | B2: 10000
A3: Interest rate | B3: 0.07
A4: Loan term | B4: 6 | C4: <-- Number of years over which loan is repaid
A5: Annual payment | B5: =PMT(B3,B4,-B2) -> 2097.957998 | C5: =getformula(B5) -> <-- =PMT(B3,B4,-B2)
E7: Split payment into:
B8: Year | C8: Principal at beginning of year | D8: Payment at end of year | E8: Interest | F8: Return of principal
B9: 1 | C9: =B2 -> 10000 | D9: =$B$5 -> 2097.957998 | E9: =$B$3*C9 -> 700 | F9: =D9-E9 -> 1397.957998
B10: 2 | C10: =C9-F9 -> 8602.042002 | D10: 2097.957998 | E10: 602.1429402 | F10: 1495.815057
B11: 3 | C11: 7106.226945 | D11: 2097.957998 | E11: 497.4358862 | F11: 1600.522111
B12: 4 | C12: 5505.704834 | D12: 2097.957998 | E12: 385.3993383 | F12: 1712.558659
B13: 5 | C13: 3793.146174 | D13: 2097.957998 | E13: 265.5202322 | F13: 1832.437765
B14: 6 | C14: 1960.708409 | D14: 2097.957998 | E14: 137.2495886 | F14: 1960.708409
B15: 7 | C15: 0

Sheet Page 30
A1: FLAT PAYMENT SCHEDULES
A2: Loan principal | B2: 10000
A3: Interest rate | B3: 0.07
A4: Loan term | B4: 6 | C4: <-- Number of years over which loan is repaid
A5: Annual payment | B5: =PMT(B3,B4,-B2) -> 2097.957998 | C5: =getformula(B5) -> <-- =PMT(B3,B4,-B2)
E7: Split payment into:
B8: Year | C8: Principal at beginning of year | D8: Payment at end of year | E8: Interest | F8: Return of principal
B9: 1 | C9: =B2 -> 10000 | D9: =$B$5 -> 2097.957998 | E9: =$B$3*C9 -> 700 | F9: =D9-E9 -> 1397.957998
B10: 2 | C10: =C9-F9 -> 8602.042002 | D10: 2097.957998 | E10: 602.1429402 | F10: 1495.815057
B11: 3 | C11: 7106.226945 | D11: 2097.957998 | E11: 497.4358862 | F11: 1600.522111
B12: 4 | C12: 5505.704834 | D12: 2097.957998 | E12: 385.3993383 | F12: 1712.558659
B13: 5 | C13: 3793.146174 | D13: 2097.957998 | E13: 265.5202322 | F13: 1832.437765
B14: 6 | C14: 1960.708409 | D14: 2097.957998 | E14: 137.2495886 | F14: 1960.708409
B15: 7 | C15: 0

Sheet Page 31
A1: SIMPLE FUTURE VALUE
A2: Interest | B2: 0.1
A4: Year | B4: Account balance, beginning of year | C4: Interest earned during year | D4: Total in account, end year
A5: 1 | B5: 1000 | C5: =$B$2*B5 -> 100 | D5: =C5+B5 -> 1100 | E5: =getformula(D5) -> <-- =C5+B5
A6: 2 | B6: =D5 -> 1100 | C6: =$B$2*B6 -> 110 | D6: =C6+B6 -> 1210 | E6: =getformula(D6) -> <-- =C6+B6
A7: 3 | B7: =D6 -> 1210 | C7: 121 | D7: 1331
A8: 4 | B8: 1331 | C8: 133.1 | D8: 1464.1
A9: 5 | B9: 1464.1 | C9: 146.41 | D9: 1610.51
A10: 6 | B10: 1610.51 | C10: 161.051 | D10: 1771.561
A11: 7 | B11: 1771.561 | C11: 177.1561 | D11: 1948.7171
A12: 8 | B12: 1948.7171 | C12: 194.87171 | D12: 2143.58881
A13: 9 | B13: 2143.58881 | C13: 214.358881 | D13: 2357.947691
A14: 10 | B14: 2357.947691 | C14: 235.7947691 | D14: 2593.74246
A15: 11 | B15: 2593.74246
A17: A simpler way | C17: =B5*(1+B2)^10 -> 2593.74246 | D17: =getformula(C17) -> <-- =B5*(1+B2)^10

Sheet Page 32
A1: FUTURE VALUE WITH ANNUAL DEPOSITS
A2: Interest | B2: 0.1
A3: Annual deposit | B3: 1000 | C3: <-- Made today and at beginning of each of next 9 years
A4: Number of deposits | B4: 10
A6: Year | B6: Account balance, beginning of year | C6: Deposit at beginning of year | D6: Interest earned during year | E6: Total in account, end year
A7: 1 | B7: 0 | C7: 1000 | D7: =$B$2*(C7+B7) -> 100 | E7: =D7+C7+B7 -> 1100 | F7: =getformula(E7) -> <-- =D7+C7+B7
A8: 2 | B8: =E7 -> 1100 | C8: 1000 | D8: =$B$2*(C8+B8) -> 210 | E8: =D8+C8+B8 -> 2310 | F8: =getformula(E8) -> <-- =D8+C8+B8
A9: 3 | B9: =E8 -> 2310 | C9: =C8 -> 1000 | D9: =$B$2*(C9+B9) -> 331 | E9: =D9+C9+B9 -> 3641
A10: 4 | B10: 3641 | C10: =C9 -> 1000 | D10: 464.1 | E10: 5105.1
A11: 5 | B11: 5105.1 | C11: 1000 | D11: 610.51 | E11: 6715.61
A12: 6 | B12: 6715.61 | C12: 1000 | D12: 771.561 | E12: 8487.171
A13: 7 | B13: 8487.171 | C13: 1000 | D13: 948.7171 | E13: 10435.8881
A14: 8 | B14: 10435.8881 | C14: 1000 | D14: 1143.58881 | E14: 12579.47691
A15: 9 | B15: 12579.47691 | C15: 1000 | D15: 1357.947691 | E15: 14937.4246
A16: 10 | B16: 14937.4246 | C16: 1000 | D16: 1593.74246 | E16: 17531.16706
A18: Future value | B18: =FV(B2,B4,-B3,,1) -> 17531.16706 | C18: =getformula(B18) -> <-- =FV(B2,B4,-B3,,1)

Sheet Page 34
A1: A RETIREMENT PROBLEM
A2: Interest | B2: 0.08
A3: Annual deposit | B3: 48000
A4: Annual retirement withdrawal | B4: 30000
F5: =ggetformula(D7) -> =$B$2*(C7+B7)
A6: Year | B6: Account balance, beginning of year | C6: Deposit at beginning of year | D6: Interest earned during year | E6: Total in account, end year
A7: 1 | B7: 0 | C7: =$B$3 -> 48000 | D7: =$B$2*(C7+B7) -> 3840 | E7: =D7+C7+B7 -> 51840 | F7: =getformula(E7) -> <-- =D7+C7+B7
A8: 2 | B8: =E7 -> 51840 | C8: =$B$3 -> 48000 | D8: 7987.2 | E8: 107827.2
A9: 3 | B9: 107827.2 | C9: =$B$3 -> 48000 | D9: 12466.176 | E9: 168293.376
A10: 4 | B10: 168293.376 | C10: =$B$3 -> 48000 | D10: 17303.47008 | E10: 233596.8461
A11: 5 | B11: 233596.8461 | C11: =$B$3 -> 48000 | D11: 22527.74769 | E11: 304124.5938
A12: 6 | B12: 304124.5938 | C12: =-$B$4 -> -30000 | D12: 21929.9675 | E12: 296054.5613
A13: 7 | B13: 296054.5613 | C13: -30000 | D13: 21284.3649 | E13: 287338.9262
A14: 8 | B14: 287338.9262 | C14: -30000 | D14: 20587.11409 | E14: 277926.0403
A15: 9 | B15: 277926.0403 | C15: -30000 | D15: 19834.08322 | E15: 267760.1235
A16: 10 | B16: 267760.1235 | C16: -30000 | D16: 19020.80988 | E16: 256780.9334
A17: 11 | B17: 256780.9334 | C17: -30000 | D17: 18142.47467 | E17: 244923.408
A18: 12 | B18: 244923.408 | C18: -30000 | D18: 17193.87264 | E18: 232117.2807
A19: 13 | B19: 232117.2807 | C19: -30000 | D19: 16169.38245 | E19: 218286.6631
A21: Note: This problem has 5 deposits and 8 annual withdrawals, all made at the beginning of the year. The beginning of year 13 is the last year of the retirement plan; if the annual deposit is correctly computed, the balance at the beginning of year 13 after the withdrawal should be zero.

Sheet Retirement picture
A2: Annual deposit | B2: 29386.551
A3: Annual withdrawal | B3: 30000
A4: Interest rate | B4: 0.08
B6: 0 | C6: 1 | D6: 2 | E6: 3 | F6: 4 | G6: 5 | H6: 6 | I6: 7 | J6: 8 | K6: 9 | L6: 10 | M6: 11 | N6: 12 | O6: 13
B8: Deposits made | G8: Withdrawals at beginning of year
A10: Future value of deposits | F10: =FV(B4,5,-B2,,1) -> 186191.1018 | G10: =getformula(F10) -> <-- =FV(B4,5,-B2,,1)
A11: Present value of withdrawals to end of year 3 | F11: =PV(B4,8,-B3,,1) -> 186191.1018 | G11: =getformula(F11) -> <-- =PV(B4,8,-B3,,1)

Sheet Page 37
A1: A RETIREMENT PROBLEM
A2: Interest | B2: 0.08
A3: Annual deposit | B3: 29386.551
A4: Annual retirement withdrawal | B4: 30000
F5: =ggetformula(D7) -> =$B$2*(C7+B7)
A6: Year | B6: Account balance, beginning of year | C6: Deposit at beginning of year | D6: Interest earned during year | E6: Total in account, end year
A7: 1 | B7: 0 | C7: =$B$3 -> 29386.551 | D7: =$B$2*(C7+B7) -> 2350.92408 | E7: =D7+C7+B7 -> 31737.47508 | F7: =getformula(E7) -> <-- =D7+C7+B7
A8: 2 | B8: =E7 -> 31737.47508 | C8: =$B$3 -> 29386.551 | D8: 4889.922087 | E8: 66013.94817
A9: 3 | B9: 66013.94817 | C9: =$B$3 -> 29386.551 | D9: 7632.039933 | E9: 103032.5391
A10: 4 | B10: 103032.5391 | C10: =$B$3 -> 29386.551 | D10: 10593.52721 | E10: 143012.6173
A11: 5 | B11: 143012.6173 | C11: =$B$3 -> 29386.551 | D11: 13791.93346 | E11: 186191.1018
A12: 6 | B12: 186191.1018 | C12: =-$B$4 -> -30000 | D12: 12495.28814 | E12: 168686.3899
A13: 7 | B13: 168686.3899 | C13: -30000 | D13: 11094.91119 | E13: 149781.3011
A14: 8 | B14: 149781.3011 | C14: -30000 | D14: 9582.504089 | E14: 129363.8052
A15: 9 | B15: 129363.8052 | C15: -30000 | D15: 7949.104416 | E15: 107312.9096
A16: 10 | B16: 107312.9096 | C16: -30000 | D16: 6185.032769 | E16: 83497.94239
A17: 11 | B17: 83497.94239 | C17: -30000 | D17: 4279.835391 | E17: 57777.77778
A18: 12 | B18: 57777.77778 | C18: -30000 | D18: 2222.222222 | E18: 30000
A19: 13 | B19: 30000 | C19: -30000 | D19: -7.407332305e-08 | E19: -9.999894246e-07
A21: Note: This problem has 5 deposits and 8 annual withdrawals, all made at the beginning of the year. The beginning of year 13 is the last year of the retirement plan; if the annual deposit is correctly computed, the balance at the beginning of year 13 after the withdrawal should be zero.

Sheet Page 38
A1: A RETIREMENT PROBLEM
A2: Interest | B2: 0.08
A3: Annual retirement withdrawal | B3: 30000
A4: Years of withdrawal | B4: 8
A5: Years of deposit | B5: 5
A6: Present value of withdrawals | B6: =-PV(B2,B4,B3)/(1+B2)^B5 -> 117331.9771 | C6: =getformula(B6) -> <-- =-PV(B2,B4,B3)/(1+B2)^B5
A7: Annual deposit | B7: =PMT(B2,B5,-B6) -> 29386.551 | C7: =getformula(B7) -> <-- =PMT(B2,B5,-B6)
B9: =PMT(B2,B5,PV(B2,B4,B3)/(1+B2)^B5) -> 29386.551 | C9: =getformula(B9) -> <-- =PMT(B2,B5,PV(B2,B4,B3)/(1+B2)^B5)

Sheet Page 39
A1: MULTIPLE COMPOUNDING PERIODS
A2: Initial deposit | B2: 1000
A3: Interest rate | B3: 0.05
A4: Number of compounding periods per year | B4: 2
A5: Interest per compounding period | B5: =B3/B4 -> 0.025 | C5: =getformula(B5) -> <-- =B3/B4
A6: Accretion in one year | B6: =B2*(1+B5)^B4 -> 1050.625 | C6: =getformula(B6) -> <-- =B2*(1+B5)^B4
A7: Continuous compounding with Exp | B7: =B2*EXP(B3) -> 1051.271096 | C7: =getformula(B7) -> <-- =B2*EXP(B3)
A24: Compounding periods per year | B24: End-year accretion
A25: 1 | B25: =$B$2*(1+$B$3/A25)^A25 -> 1050 | C25: =getformula(B25) -> <-- =$B$2*(1+$B$3/A25)^A25
A26: 2 | B26: =$B$2*(1+$B$3/A26)^A26 -> 1050.625 | C26: =getformula(B26) -> <-- =$B$2*(1+$B$3/A26)^A26
A27: 10 | B27: 1051.140132
A28: 20 | B28: 1051.205503
A29: 50 | B29: 1051.244832
A30: 100 | B30: 1051.25796
A31: 150 | B31: 1051.262338
A32: 300 | B32: 1051.266717
A33: 800 | B33: 1051.269454

Sheet Page 40
A1: CONTINUOUS DISCOUNTING
A2: Interest | B2: 0.08
A4: Year | B4: Cash flow | C4: Continously discounted PV
A5: 1 | B5: 100 | C5: =B5*EXP(-$B$2*A5) -> 92.31163464 | D5: =getformula(C5) -> <-- =B5*EXP(-$B$2*A5)
A6: 2 | B6: 200 | C6: =B6*EXP(-$B$2*A6) -> 170.4287578 | D6: =getformula(C6) -> <-- =B6*EXP(-$B$2*A6)
A7: 3 | B7: 300 | C7: =B7*EXP(-$B$2*A7) -> 235.9883583
A8: 4 | B8: 400 | C8: =B8*EXP(-$B$2*A8) -> 290.4596148
A9: 5 | B9: 500 | C9: =B9*EXP(-$B$2*A9) -> 335.160023
A11: Present value | C11: =SUM(C5:C9) -> 1124.348389 | D11: =getformula(C11) -> <-- =SUM(C5:C9)

Sheet Page 41
A1: CALCULATING RETURNS FROM PRICES
A2: Initial deposit | B2: 1000
A3: End-of-year value | B3: 1200
A4: Number of compounding periods | B4: 2
A5: Implied annual interest rate | B5: =((B3/B2)^(1/B4)-1)*B4 -> 0.19089023 | C5: =getformula(B5) -> <-- =((B3/B2)^(1/B4)-1)*B4
A7: Continuous return | B7: =LN(B3/B2) -> 0.1823215568 | C7: =getformula(B7) -> <-- =LN(B3/B2)
A9: Implied annual interest rate with n compounding periods
A10: Number of compounding periods | B10: Rate
B11: =B5 -> 0.19089023 | C11: =getformula(B11)&", data table header" -> <-- =B5, data table header
A12: 1 | B12: 0.2
A13: 2 | B13: 0.19089023
A14: 4 | B14: 0.1865405576
A15: 8 | B15: 0.1844150018
A16: 20 | B16: 0.1831551166
A17: 1000 | B17: 0.1823381784

Sheet Page 42
A1: USING XIRR TO COMPUTE THE ANNUALIZED INTERNAL RATE OF RETURN
A2: Date | B2: Cash flow
A3: 2014-01-01 | B3: -1000
A4: 2014-03-03 | B4: 150
A5: 2014-07-04 | B5: 100
A6: 2014-10-12 | B6: 50
A7: 2014-12-25 | B7: 1000
A9: IRR | B9: =XIRR(B3:B7,A3:A7) -> 0.371882695 | C9: =getformula(B9) -> <-- =XIRR(B3:B7,A3:A7)

Sheet Page 43
A1: USING XNPV TO COMPUTE THE NET PRESENT VALUE
A2: Annual discount rate | B2: 0.12
A4: Date | B4: Cash flow
A5: 2014-01-01 | B5: -1000
A6: 2015-03-03 | B6: 100
A7: 2015-07-04 | B7: 195
A8: 2016-10-12 | B8: 350
A9: 2017-12-25 | B9: 800
A11: Net present value | B11: =XNPV(B2,B5:B9,A5:A9) -> 16.80083062 | C11: =getformula(B11) -> <-- =XNPV(B2,B5:B9,A5:A9)
A13: Note that XNPV has a different syntax from NPV ! XNPV requires all the cash flows, including the initial cash flow, whereas NPV assumes that the first cash flow occurs one period hence.

Sheet Page 44, top
A1: PROBLEM WITH XNPV XNPV does not work with zero or negative discount rates
A2: Discount rate | B2: -0.03
A3: Net present value | B3: =XNPV(B2,B7:B13,A7:A13) ->  | C3: =getformula(B3) -> <-- =XNPV(B2,B7:B13,A7:A13)
B4: =nXNPV(B2,B7:B13,A7:A13) -> -194.8737661 | C4: =getformula(B4) -> <-- =nXNPV(B2,B7:B13,A7:A13)
A6: Date | B6: Cash flow
A7: 2014-06-30 | B7: -500
A8: 2015-02-14 | B8: 100
A9: 2016-02-14 | B9: 300
A10: 2017-02-14 | B10: 400
A11: 2018-02-14 | B11: 600
A12: 2019-02-14 | B12: 800
A13: 2020-02-14 | B13: -1800

Sheet Page 44, bottom
A1: PROBLEMS WITH XIRR
A2: Discount rate | B2: 0.22
A3: Net present value | B3: =XNPV(B2,B9:B15,A9:A15) -> 64.96186268 | C3: =getformula(B3) -> <-- =XNPV(B2,B9:B15,A9:A15)
A4: IRR | B4: =XIRR(B9:B15,A9:A15) ->  | C4: =getformula(B4)&" , no Guess" -> <-- =XIRR(B9:B15,A9:A15) , no Guess
B5: =XIRR(B9:B15,A9:A15,35%) ->  | C5: =getformula(B5)&", Guess = 35%" -> <-- =XIRR(B9:B15,A9:A15,35%), Guess = 35%
B6: =XIRR(B9:B15,A9:A15,5%) ->  | C6: =getformula(B6)&" , Guess = 5%" -> <-- =XIRR(B9:B15,A9:A15,5%) , Guess = 5%
A8: Date | B8: Cash flow | D8: Data table: XNPV as function of discount rate
A9: 2014-06-30 | B9: -500
A10: 2015-02-14 | B10: 100 | D10: Rate | E10: =B3 -> 64.96186268 | F10: =getformula(E10)&", data table header" -> <-- =B3, data table header
A11: 2016-02-14 | B11: 300 | D11: 0.001 | E11: -97.36643387
A12: 2017-02-14 | B12: 400 | D12: 0.025 | E12: -42.75258846
A13: 2018-02-14 | B13: 600 | D13: 0.049 | E13: -2.310474759
A14: 2019-02-14 | B14: 800 | D14: 0.073 | E14: 26.83707585
A15: 2020-02-14 | B15: -1800 | D15: 0.097 | E15: 46.9832778
D16: 0.121 | E16: 59.96125836
D17: 0.145 | E17: 67.24017625
D18: 0.169 | E18: 70.00016374
D19: 0.193 | E19: 69.19102187
D20: 0.217 | E20: 65.5783879
D21: 0.241 | E21: 59.78019617
D22: 0.265 | E22: 52.29558383
D23: 0.289 | E23: 43.52789016
D24: 0.313 | E24: 33.8030193
D25: 0.337 | E25: 23.38414858
D26: 0.361 | E26: 12.48354596
D27: 0.385 | E27: 1.272091769
D28: 0.409 | E28: -10.11302823

Sheet Page 45
A1: NXIRR FIXES THE XIRR BUG
A2: Discount rate | B2: -0.03
A3: IRR | B3: =nXIRR(B8:B14,A8:A14) -> 0.05063148499 | C3: =getformula(B3)&" , no Guess" -> <-- =nXIRR(B8:B14,A8:A14) , no Guess
B4: =nXIRR(B8:B14,A8:A14,35%) -> 0.3876950073 | C4: =getformula(B4)&", Guess = 35%" -> <-- =nXIRR(B8:B14,A8:A14,35%), Guess = 35%
B5: =nXIRR(B8:B14,A8:A14,5%) -> 0.05063148499 | C5: =getformula(B5)&" , Guess = 5%" -> <-- =nXIRR(B8:B14,A8:A14,5%) , Guess = 5%
A7: Date | B7: Cash flow
A8: 2014-06-30 | B8: -500
A9: 2015-02-14 | B9: 100
A10: 2016-02-14 | B10: 300
A11: 2017-02-14 | B11: 400
A12: 2018-02-14 | B12: 600
A13: 2019-02-14 | B13: 800
A14: 2020-02-14 | B14: -1800
